[Event "*** Titled Tuesday Blitz"]
[Site "Chess.com"]
[Date "2018.12.04"]
[Round "7"]
[White "LonesomeGeorge1"]
[Black "Evgeny81"]
[Result "1/2-1/2"]
[WhiteElo "2433"]
[BlackElo "2598"]
[TimeControl "180+2"]
[EndTime "14:40:34 PST"]
[Termination "Game drawn by stalemate"]

1. d4 {[%clk 0:03:01.9]} 1... d5 {[%clk 0:02:59.5]} 2. Bf4 {[%clk 0:03:02.1]}
2... Nf6 {[%clk 0:02:59.3]} 3. e3 {[%clk 0:03:03.1]} 3... c6 {[%clk 0:03:00.5]}
4. Nf3 {[%clk 0:03:02.1]} 4... Bg4 {[%clk 0:03:01.4]} 5. Nbd2 {[%clk 0:02:58.3]}
5... e6 {[%clk 0:03:02]} 6. Bd3 {[%clk 0:02:54.6]} 6... Nbd7 {[%clk 0:03:02.8]}
7. O-O {[%clk 0:02:55.3]} 7... Be7 {[%clk 0:03:01.7]} 8. h3 {[%clk 0:02:55.9]}
8... Bh5 {[%clk 0:03:02.8]} 9. c3 {[%clk 0:02:55.5]} 9... Bg6 {[%clk 0:03:03.8]}
10. Bxg6 {[%clk 0:02:53.3]} 10... hxg6 {[%clk 0:03:04.5]} 11. Qe2 {[%clk
0:02:53.9]} 11... Ne4 {[%clk 0:02:56.2]} 12. Nxe4 {[%clk 0:02:51.9]} 12... dxe4
{[%clk 0:02:57.5]} 13. Nd2 {[%clk 0:02:53.5]} 13... g5 {[%clk 0:02:45.1]} 14.
Bg3 {[%clk 0:02:52]} 14... Nf6 {[%clk 0:02:44.2]} 15. f3 {[%clk 0:02:39.5]}
15... exf3 {[%clk 0:02:38.3]} 16. Qxf3 {[%clk 0:02:38]} 16... Bd6 {[%clk
0:02:15.2]} 17. e4 {[%clk 0:02:38.4]} 17... Bxg3 {[%clk 0:02:04.8]} 18. Qxg3
{[%clk 0:02:32.5]} 18... Nh5 {[%clk 0:02:02.5]} 19. Qg4 {[%clk 0:02:25.6]} 19...
Nf4 {[%clk 0:02:00.1]} 20. e5 {[%clk 0:02:26.1]} 20... Rh4 {[%clk 0:01:51.8]}
21. Qf3 {[%clk 0:02:24]} 21... Qd5 {[%clk 0:01:45.3]} 22. Qxd5 {[%clk
0:02:16.1]} 22... cxd5 {[%clk 0:01:27.9]} 23. Nf3 {[%clk 0:02:16.4]} 23... Rh5
{[%clk 0:01:27.4]} 24. Nxg5 {[%clk 0:02:11.2]} 24... Ne2+ {[%clk 0:01:27.3]} 25.
Kf2 {[%clk 0:02:11.6]} 25... Rxg5 {[%clk 0:01:27.1]} 26. Kxe2 {[%clk 0:02:10.4]}
26... Rxg2+ {[%clk 0:01:28.2]} 27. Rf2 {[%clk 0:02:08.9]} 27... Rxf2+ {[%clk
0:01:27.8]} 28. Kxf2 {[%clk 0:02:10.8]} 28... Ke7 {[%clk 0:01:28.7]} 29. Rg1
{[%clk 0:02:11.2]} 29... g6 {[%clk 0:01:28.3]} 30. Kg3 {[%clk 0:02:10.9]} 30...
b5 {[%clk 0:01:20.6]} 31. a3 {[%clk 0:02:11.5]} 31... a5 {[%clk 0:01:20.9]} 32.
Ra1 {[%clk 0:02:12.5]} 32... Rc8 {[%clk 0:01:09.2]} 33. Kf4 {[%clk 0:02:07.5]}
33... Rc4 {[%clk 0:01:05.1]} 34. Ke3 {[%clk 0:01:56]} 34... Rc8 {[%clk
0:00:53.1]} 35. a4 {[%clk 0:01:39.9]} 35... bxa4 {[%clk 0:00:37.3]} 36. Rxa4
{[%clk 0:01:39.8]} 36... Rh8 {[%clk 0:00:38.4]} 37. Rxa5 {[%clk 0:01:37.7]}
37... Rxh3+ {[%clk 0:00:39.2]} 38. Kf4 {[%clk 0:01:36.9]} 38... Rh2 {[%clk
0:00:36.3]} 39. Ra7+ {[%clk 0:01:37.3]} 39... Kf8 {[%clk 0:00:35.9]} 40. b4
{[%clk 0:01:35.3]} 40... Rc2 {[%clk 0:00:31]} 41. Rc7 {[%clk 0:01:28]} 41... Kg7
{[%clk 0:00:29.5]} 42. Rc8 {[%clk 0:01:04.9]} 42... Rb2 {[%clk 0:00:23.5]} 43.
Rb8 {[%clk 0:01:02.1]} 43... Rb3 {[%clk 0:00:18.9]} 44. Rc8 {[%clk 0:01:01.7]}
44... Kh6 {[%clk 0:00:19.4]} 45. Rh8+ {[%clk 0:01:01.6]} 45... Kg7 {[%clk
0:00:20.4]} 46. Rc8 {[%clk 0:01:03.5]} 46... Rb2 {[%clk 0:00:21.4]} 47. Rb8
{[%clk 0:01:01.7]} 47... f5 {[%clk 0:00:17.5]} 48. exf6+ {[%clk 0:00:56.5]}
48... Kxf6 {[%clk 0:00:18.5]} 49. b5 {[%clk 0:00:57.8]} 49... g5+ {[%clk
0:00:16.1]} 50. Kg4 {[%clk 0:00:57.2]} 50... Rg2+ {[%clk 0:00:15.9]} 51. Kf3
{[%clk 0:00:39.5]} 51... Rc2 {[%clk 0:00:16.6]} 52. b6 {[%clk 0:00:38.9]} 52...
Rxc3+ {[%clk 0:00:17.6]} 53. Kg4 {[%clk 0:00:40.3]} 53... Rb3 {[%clk 0:00:08.8]}
54. b7 {[%clk 0:00:41]} 54... Kg7 {[%clk 0:00:09.4]} 55. Kxg5 {[%clk 0:00:41.3]}
55... Rb4 {[%clk 0:00:09.9]} 56. Kh5 {[%clk 0:00:37.9]} 56... Rb1 {[%clk
0:00:09.3]} 57. Kg4 {[%clk 0:00:37.8]} 57... Rb4 {[%clk 0:00:07.5]} 58. Kf3
{[%clk 0:00:36.8]} 58... Kh7 {[%clk 0:00:06.5]} 59. Ke3 {[%clk 0:00:37.1]} 59...
Kg7 {[%clk 0:00:06.5]} 60. Kd3 {[%clk 0:00:38.3]} 60... Kh7 {[%clk 0:00:06]} 61.
Kc3 {[%clk 0:00:39.1]} 61... Rb1 {[%clk 0:00:07]} 62. Kd3 {[%clk 0:00:19.2]}
62... Kg7 {[%clk 0:00:06.4]} 63. Ke3 {[%clk 0:00:20.3]} 63... Rb4 {[%clk
0:00:05.7]} 64. Kf3 {[%clk 0:00:18.4]} 64... Kh7 {[%clk 0:00:05.7]} 65. Re8
{[%clk 0:00:17.6]} 65... Rxb7 {[%clk 0:00:05.1]} 66. Rxe6 {[%clk 0:00:18.8]}
66... Kg7 {[%clk 0:00:04.2]} 67. Rd6 {[%clk 0:00:17.6]} 67... Rb5 {[%clk
0:00:04.4]} 68. Kf4 {[%clk 0:00:18.6]} 68... Kf7 {[%clk 0:00:05.7]} 69. Ke5
{[%clk 0:00:19.9]} 69... Ke7 {[%clk 0:00:07]} 70. Rxd5 {[%clk 0:00:20.3]} 70...
Rxd5+ {[%clk 0:00:07.6]} 71. Kxd5 {[%clk 0:00:22.2]} 71... Kd7 {[%clk
0:00:08.9]} 72. Kc5 {[%clk 0:00:23.6]} 72... Kc7 {[%clk 0:00:10]} 73. d5 {[%clk
0:00:24.7]} 73... Kd7 {[%clk 0:00:11.3]} 74. d6 {[%clk 0:00:25.8]} 74... Kd8
{[%clk 0:00:12.6]} 75. Kc6 {[%clk 0:00:26.6]} 75... Kc8 {[%clk 0:00:13.9]} 76.
d7+ {[%clk 0:00:28.1]} 76... Kd8 {[%clk 0:00:15.2]} 77. Kd6 {[%clk 0:00:30]}
1/2-1/2

[Event "*** Titled Tuesday Blitz"]
[Site "Chess.com"]
[Date "2018.12.04"]
[Round "7"]
[White "dretch"]
[Black "Korchmar_Vasiliy"]
[Result "0-1"]
[WhiteElo "2809"]
[BlackElo "2763"]
[TimeControl "180+2"]
[EndTime "14:40:36 PST"]
[Termination "Korchmar_Vasiliy won by resignation"]

1. d4 {[%clk 0:03:01.9]} 1... Nf6 {[%clk 0:03:00.8]} 2. c4 {[%clk 0:03:03]} 2...
g6 {[%clk 0:03:01.8]} 3. Nc3 {[%clk 0:03:04.2]} 3... d5 {[%clk 0:03:02.7]} 4.
Bf4 {[%clk 0:03:00.3]} 4... Bg7 {[%clk 0:03:02.7]} 5. e3 {[%clk 0:03:00.7]} 5...
O-O {[%clk 0:03:01]} 6. Rc1 {[%clk 0:03:01.5]} 6... Be6 {[%clk 0:02:40.4]} 7. c5
{[%clk 0:03:01]} 7... Nh5 {[%clk 0:02:24.5]} 8. Bg5 {[%clk 0:02:58.8]} 8... b6
{[%clk 0:02:17.9]} 9. Na4 {[%clk 0:02:58.9]} 9... Nd7 {[%clk 0:02:09]} 10. Be2
{[%clk 0:02:37.1]} 10... Nhf6 {[%clk 0:01:49.3]} 11. c6 {[%clk 0:02:37.7]} 11...
Nb8 {[%clk 0:01:49.2]} 12. Nf3 {[%clk 0:02:36.1]} 12... h6 {[%clk 0:01:42.9]}
13. Bf4 {[%clk 0:02:36.4]} 13... Nh5 {[%clk 0:01:38.8]} 14. Be5 {[%clk 0:02:36]}
14... f6 {[%clk 0:01:38.8]} 15. Bg3 {[%clk 0:01:57.9]} 15... Nxg3 {[%clk
0:01:39.7]} 16. hxg3 {[%clk 0:01:58.9]} 16... Bf7 {[%clk 0:01:34.5]} 17. b4
{[%clk 0:01:27.8]} 17... Qd6 {[%clk 0:01:35]} 18. b5 {[%clk 0:01:25.2]} 18... a6
{[%clk 0:01:36.2]} 19. O-O {[%clk 0:00:51.5]} 19... axb5 {[%clk 0:01:18.3]} 20.
Bxb5 {[%clk 0:00:53.4]} 20... Ra5 {[%clk 0:01:15]} 21. Qb3 {[%clk 0:00:50]}
21... Na6 {[%clk 0:01:11.7]} 22. Rb1 {[%clk 0:00:32.1]} 22... g5 {[%clk
0:01:06.4]} 23. Rfc1 {[%clk 0:00:31.5]} 23... Bg6 {[%clk 0:00:58.4]} 24. Rb2
{[%clk 0:00:32]} 24... Kh8 {[%clk 0:00:59.7]} 25. Ne1 {[%clk 0:00:20.8]} 25...
e5 {[%clk 0:00:58.1]} 26. Nd3 {[%clk 0:00:16.8]} 26... e4 {[%clk 0:00:52.5]} 27.
Bxa6 {[%clk 0:00:17.9]} 27... Rxa6 {[%clk 0:00:53.6]} 28. Nb4 {[%clk 0:00:18.6]}
28... Raa8 {[%clk 0:00:54.8]} 29. Nc3 {[%clk 0:00:19.4]} 29... Ra5 {[%clk
0:00:51.9]} 30. a4 {[%clk 0:00:18.3]} 30... Bf7 {[%clk 0:00:49.3]} 31. Nb5
{[%clk 0:00:19.4]} 31... Qd8 {[%clk 0:00:48.1]} 32. Ra2 {[%clk 0:00:12.7]} 32...
Be6 {[%clk 0:00:47.2]} 33. Raa1 {[%clk 0:00:11.4]} 33... f5 {[%clk 0:00:47.9]}
34. Ra3 {[%clk 0:00:11.2]} 34... f4 {[%clk 0:00:49.2]} 35. exf4 {[%clk
0:00:11.9]} 35... gxf4 {[%clk 0:00:51.1]} 36. gxf4 {[%clk 0:00:12.8]} 36... Rxf4
{[%clk 0:00:53]} 37. Qg3 {[%clk 0:00:12]} 37... Rf7 {[%clk 0:00:34.9]} 38. Nc2
{[%clk 0:00:11.3]} 38... Bf6 {[%clk 0:00:19.7]} 39. Ne3 {[%clk 0:00:11.8]} 39...
Rg7 {[%clk 0:00:21]} 40. Qh2 {[%clk 0:00:13.1]} 40... Bg5 {[%clk 0:00:17]} 41.
Rcc3 {[%clk 0:00:14]} 41... Qf8 {[%clk 0:00:13]} 42. Nf1 {[%clk 0:00:15]} 42...
Bf4 {[%clk 0:00:13.9]} 43. Ng3 {[%clk 0:00:14.9]} 43... Qf6 {[%clk 0:00:08.9]}
44. Qh5 {[%clk 0:00:14.6]} 44... Ra8 {[%clk 0:00:08.3]} 45. Qe2 {[%clk
0:00:15.1]} 45... Rag8 {[%clk 0:00:09.2]} 46. Rab3 {[%clk 0:00:13]} 46... Bf7
{[%clk 0:00:06.8]} 47. Qd1 {[%clk 0:00:12.9]} 47... h5 {[%clk 0:00:07.5]} 48.
Kf1 {[%clk 0:00:11]} 48... Qg5 {[%clk 0:00:04.4]} 49. Qe2 {[%clk 0:00:10.2]}
49... h4 {[%clk 0:00:05.3]} 50. Ke1 {[%clk 0:00:06.8]} 50... hxg3 {[%clk
0:00:06.2]} 51. fxg3 {[%clk 0:00:08]} 51... Bd6 {[%clk 0:00:04.5]} 52. Nxd6
{[%clk 0:00:08.3]} 52... cxd6 {[%clk 0:00:06.4]} 53. c7 {[%clk 0:00:09.4]} 53...
Be6 {[%clk 0:00:07.6]} 54. Rxb6 {[%clk 0:00:09.3]} 54... Rh7 {[%clk 0:00:07.2]}
55. Kd1 {[%clk 0:00:09.5]} 55... Rh1+ {[%clk 0:00:07.4]} 56. Kc2 {[%clk
0:00:10.5]} 56... Rc1+ {[%clk 0:00:08.6]} 57. Kb2 {[%clk 0:00:11.3]} 57... Rxc3
{[%clk 0:00:09.8]} 58. Kxc3 {[%clk 0:00:13.2]} 58... Qc1+ {[%clk 0:00:11.1]} 59.
Qc2 {[%clk 0:00:13.2]} 59... Qe3+ {[%clk 0:00:09.7]} 60. Kb2 {[%clk 0:00:14.2]}
60... Qxd4+ {[%clk 0:00:10.9]} 61. Qc3 {[%clk 0:00:15.6]} 61... Qxc3+ {[%clk
0:00:11.4]} 62. Kxc3 {[%clk 0:00:17.5]} 62... Rc8 {[%clk 0:00:12.3]} 63. Rb8
{[%clk 0:00:17.2]} 63... Kg7 {[%clk 0:00:13.7]} 64. Rxc8 {[%clk 0:00:17.9]}
64... Bxc8 {[%clk 0:00:15.6]} 65. Kd4 {[%clk 0:00:18.1]} 65... Kf7 {[%clk
0:00:16.5]} 66. a5 {[%clk 0:00:17.5]} 66... Ke7 {[%clk 0:00:17.2]} 67. g4 {[%clk
0:00:19.1]} 67... Kd7 {[%clk 0:00:09.4]} 68. g5 {[%clk 0:00:20.4]} 68... Kxc7
{[%clk 0:00:10.4]} 69. g6 {[%clk 0:00:19.6]} 69... Be6 {[%clk 0:00:11.3]} 70.
Ke3 {[%clk 0:00:16.8]} 70... Kb7 {[%clk 0:00:11.5]} 71. Kf4 {[%clk 0:00:18]}
71... Ka6 {[%clk 0:00:12]} 72. Kg5 {[%clk 0:00:17.8]} 72... e3 {[%clk 0:00:12]}
73. Kf6 {[%clk 0:00:19.1]} 73... Bg8 {[%clk 0:00:12.5]} 74. Kg7 {[%clk
0:00:20.3]} 74... e2 {[%clk 0:00:13.2]} 75. Kxg8 {[%clk 0:00:21.7]} 75... e1=Q
{[%clk 0:00:14.8]} 76. g7 {[%clk 0:00:22.7]} 76... d4 {[%clk 0:00:14.6]} 77. Kf7
{[%clk 0:00:22.5]} 77... Qf2+ {[%clk 0:00:15.4]} 78. Ke6 {[%clk 0:00:23]} 78...
Qxg2 {[%clk 0:00:16.7]} 0-1

[Event "*** Titled Tuesday Blitz"]
[Site "Chess.com"]
[Date "2018.12.04"]
[Round "7"]
[White "dyziotomi99"]
[Black "DeviatkinAndrey"]
[Result "1/2-1/2"]
[WhiteElo "2635"]
[BlackElo "2675"]
[TimeControl "180+2"]
[EndTime "14:40:40 PST"]
[Termination "Game drawn by repetition"]

1. e4 {[%clk 0:03:01.9]} 1... c6 {[%clk 0:03:00.5]} 2. d4 {[%clk 0:03:01.9]}
2... d5 {[%clk 0:03:01.5]} 3. Nd2 {[%clk 0:03:03.1]} 3... h6 {[%clk 0:03:01.8]}
4. Ngf3 {[%clk 0:03:02.5]} 4... dxe4 {[%clk 0:03:02.6]} 5. Nxe4 {[%clk
0:03:03.7]} 5... Bf5 {[%clk 0:03:04.2]} 6. Nc5 {[%clk 0:03:04.6]} 6... Qc7
{[%clk 0:03:03.8]} 7. Bd3 {[%clk 0:03:00.3]} 7... Bxd3 {[%clk 0:03:03.8]} 8.
Nxd3 {[%clk 0:03:01.9]} 8... Nd7 {[%clk 0:03:05]} 9. O-O {[%clk 0:03:02.8]} 9...
e6 {[%clk 0:03:05]} 10. Bf4 {[%clk 0:03:00]} 10... Bd6 {[%clk 0:03:05.1]} 11.
Bxd6 {[%clk 0:02:46.6]} 11... Qxd6 {[%clk 0:03:05.5]} 12. c4 {[%clk 0:02:48.5]}
12... Ngf6 {[%clk 0:03:04.1]} 13. Qb3 {[%clk 0:02:48.5]} 13... Qc7 {[%clk
0:03:03.6]} 14. Qa3 {[%clk 0:02:49]} 14... Nb6 {[%clk 0:02:43.8]} 15. b3 {[%clk
0:02:41.3]} 15... Qe7 {[%clk 0:02:44.7]} 16. Qxe7+ {[%clk 0:02:42.2]} 16... Kxe7
{[%clk 0:02:45.3]} 17. Nc5 {[%clk 0:02:38.8]} 17... Rab8 {[%clk 0:02:44.1]} 18.
Rfe1 {[%clk 0:02:38.4]} 18... Rhd8 {[%clk 0:02:42.6]} 19. Rad1 {[%clk
0:02:34.1]} 19... Kf8 {[%clk 0:02:22.4]} 20. g3 {[%clk 0:02:25.7]} 20... Nc8
{[%clk 0:02:16.3]} 21. Kg2 {[%clk 0:02:09.3]} 21... Ne7 {[%clk 0:02:10.9]} 22.
h3 {[%clk 0:02:04.2]} 22... b6 {[%clk 0:02:10.6]} 23. Nd3 {[%clk 0:02:04.7]}
23... Rd6 {[%clk 0:02:06.1]} 24. Nde5 {[%clk 0:02:00.9]} 24... Rbd8 {[%clk
0:02:04.9]} 25. Rc1 {[%clk 0:02:01.3]} 25... c5 {[%clk 0:01:42.7]} 26. dxc5
{[%clk 0:02:00.9]} 26... bxc5 {[%clk 0:01:44.6]} 27. g4 {[%clk 0:01:49.7]} 27...
Ne8 {[%clk 0:01:42.6]} 28. Ng1 {[%clk 0:01:20.9]} 28... f6 {[%clk 0:01:43.3]}
29. Nef3 {[%clk 0:01:22]} 29... e5 {[%clk 0:01:44]} 30. Ne2 {[%clk 0:01:21.4]}
30... Nc7 {[%clk 0:01:35.7]} 31. Nc3 {[%clk 0:01:21.5]} 31... Ne6 {[%clk
0:01:35.8]} 32. Ne4 {[%clk 0:01:18.2]} 32... Rd3 {[%clk 0:01:31]} 33. Re3 {[%clk
0:01:18.4]} 33... R3d7 {[%clk 0:01:06.6]} 34. Ng1 {[%clk 0:01:11.4]} 34... Nc6
{[%clk 0:01:05]} 35. Ne2 {[%clk 0:01:11.7]} 35... Ncd4 {[%clk 0:01:05.8]} 36.
N2c3 {[%clk 0:01:09.2]} 36... Nf4+ {[%clk 0:01:00.2]} 37. Kh2 {[%clk 0:01:09.7]}
37... Nde6 {[%clk 0:00:59.8]} 38. Na4 {[%clk 0:01:06.3]} 38... Kf7 {[%clk
0:00:54.7]} 39. Rc2 {[%clk 0:01:03.9]} 39... Rc8 {[%clk 0:00:45.3]} 40. Rd2
{[%clk 0:01:01.6]} 40... Ke7 {[%clk 0:00:39]} 41. Rxd7+ {[%clk 0:01:00.7]} 41...
Kxd7 {[%clk 0:00:40.2]} 42. Re1 {[%clk 0:01:00.1]} 42... Ke7 {[%clk 0:00:26.6]}
43. Rd1 {[%clk 0:00:59.3]} 43... Rc6 {[%clk 0:00:27.8]} 44. h4 {[%clk
0:00:50.3]} 44... h5 {[%clk 0:00:27.2]} 45. f3 {[%clk 0:00:48.5]} 45... hxg4
{[%clk 0:00:27.8]} 46. fxg4 {[%clk 0:00:49.6]} 46... g6 {[%clk 0:00:29.4]} 47.
g5 {[%clk 0:00:48.6]} 47... f5 {[%clk 0:00:28.6]} 48. Nf6 {[%clk 0:00:44.1]}
48... Nd4 {[%clk 0:00:29.4]} 49. Nc3 {[%clk 0:00:32.1]} 49... Rd6 {[%clk
0:00:18.2]} 50. Ncd5+ {[%clk 0:00:29.5]} 50... Nxd5 {[%clk 0:00:17.3]} 51. Nxd5+
{[%clk 0:00:30.5]} 51... Ke6 {[%clk 0:00:17.5]} 52. Kg3 {[%clk 0:00:29]} 52...
a5 {[%clk 0:00:11.9]} 53. Re1 {[%clk 0:00:27.3]} 53... Nc6 {[%clk 0:00:10.8]}
54. Nf4+ {[%clk 0:00:26.7]} 54... Kf7 {[%clk 0:00:11.7]} 55. Nd5 {[%clk
0:00:28.6]} 55... e4 {[%clk 0:00:12.5]} 56. Kf4 {[%clk 0:00:29.3]} 56... Nb4
{[%clk 0:00:13.4]} 57. Rd1 {[%clk 0:00:28.4]} 57... Nxa2 {[%clk 0:00:08.8]} 58.
Ra1 {[%clk 0:00:27.8]} 58... Nb4 {[%clk 0:00:09.5]} 59. Rxa5 {[%clk 0:00:27.7]}
59... Nxd5+ {[%clk 0:00:09.8]} 60. cxd5 {[%clk 0:00:29]} 60... Rxd5 {[%clk
0:00:11.2]} 61. Ra7+ {[%clk 0:00:30.6]} 61... Ke6 {[%clk 0:00:11.6]} 62. Rg7
{[%clk 0:00:31.3]} 62... Rd4 {[%clk 0:00:06.9]} 63. Rxg6+ {[%clk 0:00:32]} 63...
Ke7 {[%clk 0:00:08.4]} 64. Rf6 {[%clk 0:00:31.8]} 64... e3+ {[%clk 0:00:07.7]}
65. Kxe3 {[%clk 0:00:32.9]} 65... Rxh4 {[%clk 0:00:08.9]} 66. Rxf5 {[%clk
0:00:33.8]} 66... Rb4 {[%clk 0:00:08.7]} 67. Rxc5 {[%clk 0:00:34.3]} 67... Rxb3+
{[%clk 0:00:09.4]} 68. Kf4 {[%clk 0:00:36.2]} 68... Kf7 {[%clk 0:00:10.3]} 69.
Kf5 {[%clk 0:00:36.2]} 69... Rb8 {[%clk 0:00:10.5]} 70. Rc7+ {[%clk 0:00:36.2]}
70... Kg8 {[%clk 0:00:11.5]} 71. Rc6 {[%clk 0:00:36.1]} 71... Ra8 {[%clk
0:00:11.4]} 72. Kg6 {[%clk 0:00:36.6]} 72... Rb8 {[%clk 0:00:12]} 73. Kh6 {[%clk
0:00:38.1]} 73... Ra8 {[%clk 0:00:12.5]} 74. Rg6+ {[%clk 0:00:38.7]} 74... Kh8
{[%clk 0:00:13.1]} 75. Rf6 {[%clk 0:00:40]} 75... Kg8 {[%clk 0:00:13.5]} 76. g6
{[%clk 0:00:41.3]} 76... Rb8 {[%clk 0:00:14]} 77. Rf7 {[%clk 0:00:42.2]} 77...
Ra8 {[%clk 0:00:14.3]} 78. Rg7+ {[%clk 0:00:43.4]} 78... Kh8 {[%clk 0:00:14.9]}
79. Rh7+ {[%clk 0:00:44.6]} 79... Kg8 {[%clk 0:00:16]} 80. Rg7+ {[%clk
0:00:46.1]} 80... Kh8 {[%clk 0:00:17]} 81. Rh7+ {[%clk 0:00:47.6]} 81... Kg8
{[%clk 0:00:18.2]} 82. Rg7+ {[%clk 0:00:49.1]} 82... Kh8 {[%clk 0:00:19.1]} 83.
Rh7+ {[%clk 0:00:50.6]} 83... Kg8 {[%clk 0:00:20.1]} 84. Rg7+ {[%clk 0:00:52]}
84... Kh8 {[%clk 0:00:21.1]} 85. Rh7+ {[%clk 0:00:53.4]} 85... Kg8 {[%clk
0:00:22]} 86. Rg7+ {[%clk 0:00:55]} 1/2-1/2

[Event "*** Titled Tuesday Blitz"]
[Site "Chess.com"]
[Date "2018.12.04"]
[Round "7"]
[White "MaestroASK"]
[Black "LastGladiator1"]
[Result "0-1"]
[WhiteElo "2517"]
[BlackElo "2688"]
[TimeControl "180+2"]
[EndTime "14:40:52 PST"]
[Termination "LastGladiator1 won by resignation"]

1. g3 {[%clk 0:03:01.9]} 1... Nf6 {[%clk 0:03:00.8]} 2. Bg2 {[%clk 0:03:02]}
2... d5 {[%clk 0:03:01.2]} 3. d3 {[%clk 0:03:02.9]} 3... Bf5 {[%clk 0:03:02.3]}
4. Nd2 {[%clk 0:03:02.5]} 4... e6 {[%clk 0:03:03.4]} 5. e4 {[%clk 0:03:03.2]}
5... Bg6 {[%clk 0:03:04.7]} 6. Nh3 {[%clk 0:03:03.3]} 6... Be7 {[%clk
0:03:03.4]} 7. Qe2 {[%clk 0:03:02]} 7... Nc6 {[%clk 0:02:44.1]} 8. c3 {[%clk
0:03:01.8]} 8... Bh5 {[%clk 0:02:44.7]} 9. f3 {[%clk 0:03:01.9]} 9... dxe4
{[%clk 0:02:37.5]} 10. dxe4 {[%clk 0:03:01.6]} 10... Ne5 {[%clk 0:02:26.7]} 11.
Nf4 {[%clk 0:02:58.6]} 11... O-O {[%clk 0:02:18.2]} 12. Nc4 {[%clk 0:02:48.4]}
12... Nxc4 {[%clk 0:02:07.6]} 13. Qxc4 {[%clk 0:02:48.3]} 13... Bg6 {[%clk
0:02:07.8]} 14. O-O {[%clk 0:02:43.3]} 14... c6 {[%clk 0:02:02.3]} 15. Be3
{[%clk 0:02:40.5]} 15... Qa5 {[%clk 0:02:03.3]} 16. Rfe1 {[%clk 0:02:34.4]}
16... Rfd8 {[%clk 0:02:03.3]} 17. Bf1 {[%clk 0:02:27.8]} 17... Rd7 {[%clk
0:01:59.7]} 18. Qb3 {[%clk 0:02:23.9]} 18... Bc5 {[%clk 0:01:54.8]} 19. Nd3
{[%clk 0:02:10.8]} 19... Bxe3+ {[%clk 0:01:52.6]} 20. Rxe3 {[%clk 0:02:11]}
20... Rad8 {[%clk 0:01:40.4]} 21. Nf2 {[%clk 0:02:09.7]} 21... Qc5 {[%clk
0:01:02.3]} 22. Rae1 {[%clk 0:02:06.2]} 22... b5 {[%clk 0:00:58.5]} 23. Kg2
{[%clk 0:02:03.4]} 23... a5 {[%clk 0:00:45.4]} 24. Rd3 {[%clk 0:01:57.8]} 24...
a4 {[%clk 0:00:37.7]} 25. Qc2 {[%clk 0:01:56.7]} 25... Rxd3 {[%clk 0:00:37.7]}
26. Nxd3 {[%clk 0:01:56.6]} 26... Qb6 {[%clk 0:00:38.8]} 27. Qf2 {[%clk
0:01:54.8]} 27... Qxf2+ {[%clk 0:00:34.9]} 28. Kxf2 {[%clk 0:01:54.9]} 28... Nd7
{[%clk 0:00:23.7]} 29. Be2 {[%clk 0:01:49.6]} 29... Kf8 {[%clk 0:00:22.2]} 30.
Nb4 {[%clk 0:01:45.1]} 30... Nb8 {[%clk 0:00:22.2]} 31. Rd1 {[%clk 0:01:39.4]}
31... Rxd1 {[%clk 0:00:21.6]} 32. Bxd1 {[%clk 0:01:40]} 32... Ke7 {[%clk
0:00:23.2]} 33. c4 {[%clk 0:01:38.3]} 33... Kd6 {[%clk 0:00:20.7]} 34. cxb5
{[%clk 0:01:27.8]} 34... cxb5 {[%clk 0:00:22.6]} 35. Ke3 {[%clk 0:01:27.1]}
35... Kc5 {[%clk 0:00:21]} 36. Nd3+ {[%clk 0:01:25.8]} 36... Kd6 {[%clk
0:00:22.1]} 37. Be2 {[%clk 0:01:21]} 37... Nc6 {[%clk 0:00:21.9]} 38. Nf4 {[%clk
0:01:19.1]} 38... Kc5 {[%clk 0:00:21.7]} 39. Nd3+ {[%clk 0:01:17.4]} 39... Kb6
{[%clk 0:00:22.6]} 40. h4 {[%clk 0:01:14.1]} 40... f6 {[%clk 0:00:23.8]} 41. f4
{[%clk 0:01:11.5]} 41... Bf7 {[%clk 0:00:24.9]} 42. e5 {[%clk 0:01:10.4]} 42...
Na5 {[%clk 0:00:19.8]} 43. Kd4 {[%clk 0:01:03.8]} 43... Nc6+ {[%clk 0:00:16.8]}
44. Ke3 {[%clk 0:01:04.3]} 44... Bg6 {[%clk 0:00:18.2]} 45. exf6 {[%clk
0:01:01.3]} 45... gxf6 {[%clk 0:00:20.1]} 46. Nf2 {[%clk 0:00:57.8]} 46... Nb4
{[%clk 0:00:18.8]} 47. a3 {[%clk 0:00:56.8]} 47... Nc2+ {[%clk 0:00:15]} 48. Kd2
{[%clk 0:00:57.4]} 48... Nd4 {[%clk 0:00:16.4]} 49. Bd1 {[%clk 0:00:48.7]} 49...
Bf5 {[%clk 0:00:03.7]} 50. g4 {[%clk 0:00:46.7]} 50... Bb1 {[%clk 0:00:05.3]}
51. Ke3 {[%clk 0:00:44.7]} 51... Kc5 {[%clk 0:00:05.8]} 52. h5 {[%clk
0:00:36.3]} 52... h6 {[%clk 0:00:05.7]} 53. Ne4+ {[%clk 0:00:26.8]} 53... Bxe4
{[%clk 0:00:06.1]} 54. Kxe4 {[%clk 0:00:27.5]} 54... Nc6 {[%clk 0:00:06.7]} 55.
g5 {[%clk 0:00:27.2]} 55... fxg5 {[%clk 0:00:05.5]} 56. fxg5 {[%clk 0:00:27.7]}
56... hxg5 {[%clk 0:00:07.1]} 57. h6 {[%clk 0:00:28.2]} 57... Ne7 {[%clk
0:00:08.6]} 58. Bh5 {[%clk 0:00:27.1]} 58... Ng8 {[%clk 0:00:08.9]} 59. Bf7
{[%clk 0:00:22.3]} 59... Nxh6 {[%clk 0:00:08.9]} 60. Bxe6 {[%clk 0:00:23]} 60...
Kd6 {[%clk 0:00:09.9]} 61. Bc8 {[%clk 0:00:22.2]} 61... Nf7 {[%clk 0:00:10.4]}
62. Kf5 {[%clk 0:00:22]} 62... Kc5 {[%clk 0:00:11.5]} 63. Be6 {[%clk 0:00:21.2]}
63... Nd6+ {[%clk 0:00:12.9]} 64. Kxg5 {[%clk 0:00:21.6]} 64... Nc4 {[%clk
0:00:14.4]} 65. Kf4 {[%clk 0:00:20.3]} 65... Nxb2 {[%clk 0:00:14.6]} 66. Ke3
{[%clk 0:00:20.6]} 66... Nc4+ {[%clk 0:00:16.1]} 67. Kd3 {[%clk 0:00:21]} 67...
Nxa3 {[%clk 0:00:17.2]} 68. Kc3 {[%clk 0:00:21.4]} 68... b4+ {[%clk 0:00:18.7]}
69. Kb2 {[%clk 0:00:21.7]} 69... Nc4+ {[%clk 0:00:20.2]} 70. Ka2 {[%clk
0:00:22.3]} 70... Kd4 {[%clk 0:00:21.5]} 71. Ka1 {[%clk 0:00:22.4]} 71... b3
{[%clk 0:00:21.8]} 72. Bf5 {[%clk 0:00:20.9]} 72... a3 {[%clk 0:00:22.7]} 73.
Bb1 {[%clk 0:00:20.6]} 73... Kc3 {[%clk 0:00:22.6]} 74. Bf5 {[%clk 0:00:18.8]}
74... Ne3 {[%clk 0:00:22.2]} 75. Be4 {[%clk 0:00:16.8]} 75... Nc2+ {[%clk
0:00:22.9]} 76. Bxc2 {[%clk 0:00:16.5]} 76... bxc2 {[%clk 0:00:24]} 0-1